bitfinex-derivatives/quotes_SOLF0:USTF0_20240927
["timestamp","ask_amount","ask_price","bid_price","bid_amount"]
[1727412000320,3.1967,156.39,156.37,9.84]
[1727412000523,0.97288155,156.38,156.36,3.1971]
[1727412001319,3.1967,156.39,156.36,3.1971]
[1727412001520,12.99327,156.43,156.38,9.84]
[1727412001722,0.9728788,156.42,156.38,9.84]
[1727412002023,12.99327,156.43,156.38,9.84]
[1727412002420,3.1966,156.39,156.38,9.84]
[1727412004521,3.1966,156.39,156.36,3.1971]
[1727412004721,3.1966,156.39,156.38,9.84]
[1727412014235,3.197,156.37,156.33,2.6762]
[1727412014434,3.197,156.37,156.36,9.84]
[1727412021338,3.1969,156.38,156.36,13.0372]
[1727412021637,3.1969,156.38,156.37,9.84]
[1727412022442,3.1967,156.39,156.37,9.84]
[1727412022645,3.1967,156.39,156.37,13.037]
[1727412022838,1.1075,156.45,156.38,9.84]
[1727412023137,0.1329,156.5,156.33,2.6762]
[1727412023138,0.97221578,156.44,156.4,9.84]
[1727412023345,13.10691134,156.48,156.43,9.84]
[1727412023647,0.9720727,156.47,156.44,9.84]
[1727412023837,9.84,156.48,156.44,9.84]
[1727412024137,9.84,156.48,156.4,1.2967]
[1727412024138,0.97199364,156.47,156.43,9.84]
[1727412024441,9.84,156.47,156.42,9.84]
[1727412024842,3.1957,156.44,156.42,9.84]
[1727412025037,9.84,156.46,156.41,9.84]
[1727412025437,1.1079,156.52,156.42,9.84]
[1727412025639,9.84,156.47,156.42,9.84]
[1727412026035,3.1954,156.45,156.42,13.0359]
[1727412026338,9.84,156.47,156.44,9.84]
[1727412026538,1.4571,156.53,156.4,1.2967]
[1727412026539,1.3255,156.53,156.45,9.84]
[1727412026738,9.84,156.51,156.48,9.84]
[1727412026940,0.97195497,156.5,156.48,9.84]
[1727412027140,3.1946,156.49,156.48,9.84]
[1727412035842,9.84,156.49,156.45,9.84]
[1727412036338,3.1951,156.47,156.46,9.84]
[1727412036739,3.1951,156.47,156.44,3.1956]
[1727412036935,3.1951,156.47,156.46,9.84]
[1727412037143,3.1951,156.47,156.44,3.1956]
[1727412037443,3.1951,156.47,156.46,9.84]
[1727412038244,9.84,156.49,156.46,9.84]
[1727412038245,3.1949,156.48,156.46,9.84]
[1727412038436,3.1949,156.48,156.47,9.84]
[1727412039954,13.09521482,156.5,156.41,23.59677164]
[1727412040250,9.84,156.46,156.42,9.84]
[1727412040444,3.1956,156.45,156.42,13.036]
[1727412040644,9.84,156.46,156.42,13.036]
[1727412041045,3.1955,156.45,156.43,9.84]
[1727412041547,3.1953,156.46,156.43,9.84]
[1727412042341,3.1954,156.45,156.43,13.0357]
[1727412043450,3.1954,156.45,156.43,9.84]
[1727412043844,3.1956,156.44,156.43,9.84]
[1727412044453,9.84,156.46,156.4,1.2967]
[1727412044649,9.84,156.45,156.41,9.84]
[1727412044951,3.1959,156.43,156.41,9.84]
[1727412045150,3.1959,156.43,156.42,9.84]
[1727412047644,3.1962,156.41,156.4,1.2967]
[1727412047849,9.84,156.43,156.39,9.84]
[1727412048352,3.1965,156.4,156.39,9.84]
[1727412049554,9.84,156.43,156.39,9.84]
[1727412050156,3.1965,156.4,156.39,9.84]
[1727412051654,9.84,156.44,156.39,9.84]
[1727412051850,9.84,156.44,156.41,9.84]
[1727412052749,3.196,156.42,156.41,9.84]
[1727412053850,3.1959,156.43,156.41,9.84]
[1727412054052,3.20001208,156.47,156.42,9.84]
[1727412054053,13.09913938,156.47,156.42,9.84]
[1727412054252,9.84,156.47,156.42,9.84]
[1727412054449,3.1957,156.44,156.42,9.84]
[1727412055054,3.1957,156.44,156.42,13.036]
[1727412057657,3.1958,156.43,156.41,3.1962]
[1727412057853,3.1958,156.43,156.41,9.84]
[1727412058261,3.1958,156.43,156.41,13.0362]
[1727412058662,3.1958,156.43,156.42,9.84]
[1727412059165,3.1958,156.43,156.41,13.0362]
[1727412059362,3.1958,156.43,156.41,9.84]
[1727412060762,3.196,156.42,156.4,9.84]
[1727412060959,9.84,156.42,156.37,1.269]
[1727412061162,3.1966,156.4,156.38,9.84]
[1727412061364,3.1966,156.4,156.39,9.84]
[1727412061556,3.196,156.42,156.39,9.84]
[1727412061763,9.84,156.44,156.41,9.84]
[1727412061955,9.84,156.45,156.42,9.84]
[1727412062154,9.84,156.46,156.42,9.84]
[1727412062466,9.84,156.45,156.41,9.84]
[1727412064262,9.63097836,156.5,156.42,9.84]
[1727412064263,3.1959,156.43,156.42,9.84]
[1727412064563,9.63097836,156.5,156.42,9.84]
[1727412064762,9.84,156.48,156.44,9.84]
[1727412065067,0.97201075,156.47,156.44,9.84]
[1727412065268,3.1956,156.44,156.43,9.84]
[1727412068668,1.2902,156.51,156.43,9.84]
[1727412068868,0.97184904,156.5,156.44,1.2645]
[1727412069068,0.97184904,156.5,156.47,9.84]
[1727412069271,4.16634904,156.5,156.49,9.84]
[1727412069570,9.84,156.53,156.49,9.84]
[1727412069870,0.9716122,156.52,156.49,9.84]
[1727412070065,13.02184992,156.53,156.49,9.84]
[1727412070066,3.1943,156.51,156.49,9.84]
[1727412070268,9.84,156.53,156.49,9.84]
[1727412070573,0.97162524,156.52,156.49,9.84]
[1727412071166,3.1944,156.5,156.49,9.84]
[1727412071669,3.1941,156.52,156.49,13.0345]
[1727412071867,3.1941,156.52,156.51,9.84]
[1727412072265,0.97160055,156.52,156.51,9.84]
[1727412072466,1.2899,156.56,156.51,9.84]
[1727412072467,11.1299,156.56,156.51,9.84]
[1727412072669,0.97156529,156.55,156.51,9.84]
[1727412072977,3.194,156.52,156.51,9.84]
[1727412073165,1.2899,156.56,156.51,9.84]
[1727412073468,0.97156201,156.55,156.53,9.84]
[1727412073669,0.97151519,156.54,156.53,9.84]
[1727412073870,0.97151519,156.56,156.53,9.84]
[1727412074071,0.97151519,156.55,156.53,9.84]
[1727412074369,0.97151519,156.54,156.52,9.84]
[1727412074574,0.97151519,156.54,156.51,9.84]
[1727412074970,28.7892,156.73,156.53,9.84]
[1727412075174,1.2351,156.67,156.57,9.84]
[1727412075374,9.84,156.62,156.58,9.84]
[1727412075563,3.21711402,156.61,156.58,9.84]
[1727412076865,3.1928,156.58,156.56,9.84]
[1727412077070,12.965566,156.61,156.57,9.84]
[1727412077470,2.6931,156.66,156.59,9.84]
[1727412077674,9.84,156.64,156.6,9.84]
[1727412078571,13.07705645,156.64,156.6,9.84]
[1727412078774,3.1922,156.61,156.6,9.84]
[1727412081780,3.1926,156.59,156.55,2.7338]
[1727412082076,9.84,156.64,156.58,9.84]
[1727412082278,9.84,156.64,156.6,9.84]
[1727412082478,3.1921,156.61,156.6,9.84]
[1727412085282,4.15567011,156.61,156.6,9.84]
[1727412086879,0.96354933,156.61,156.56,3.1931]
[1727412087083,0.96354933,156.6,156.55,2.7338]
[1727412087382,9.84,156.64,156.59,9.84]
[1727412087583,0.96356732,156.63,156.59,9.84]
[1727412087980,0.96355698,156.62,156.59,9.84]
[1727412088179,0.96355698,156.63,156.59,9.84]
[1727412088381,3.1923,156.61,156.59,9.84]
[1727412088686,13.08229251,156.64,156.57,3.1928]
[1727412088985,0.96357882,156.63,156.59,9.84]
[1727412089386,3.1924,156.6,156.59,9.84]
[1727412095186,2.6931,156.66,156.37,225.0]
[1727412095387,1.090585,156.65,156.57,9.84]
[1727412095683,9.84,156.62,156.57,9.84]
[1727412095888,4.0818895,156.61,156.57,9.84]
[1727412096090,0.96378362,156.6,156.57,9.84]
[1727412096281,3.1927,156.58,156.57,9.84]
[1727412096481,4.15648362,156.58,156.57,9.84]
[1727412097694,4.15648927,156.58,156.57,9.84]
[1727412098189,4.1564892,156.58,156.57,9.84]
[1727412102090,3.1927,156.58,156.57,9.84]
[1727412102892,3.1927,156.58,156.55,3.1932]
[1727412103088,3.1927,156.58,156.57,9.84]
[1727412103285,2.6931,156.66,156.57,13.0329]
[1727412103490,9.84,156.64,156.6,9.84]
[1727412103693,0.96362715,156.63,156.6,9.84]
[1727412104795,3.1921,156.61,156.58,3.1927]
[1727412104997,3.1921,156.61,156.6,9.84]
[1727412105196,4.15572362,156.61,156.6,9.84]
[1727412106194,4.15572476,156.61,156.6,9.84]
[1727412106393,0.96362476,156.61,156.6,9.84]
[1727412106595,3.22844764,156.65,156.6,9.84]
[1727412106793,0.96352925,156.64,156.61,9.84]
[1727412106994,3.1919,156.62,156.61,9.84]
[1727412107289,4.15542925,156.62,156.61,9.84]
[1727412110490,4.15540307,156.62,156.61,9.84]
[1727412111098,83.0177,156.78,156.61,9.84]
[1727412111301,9.84,156.73,156.7,9.84]
[1727412112197,0.95584968,156.72,156.63,2.6543]
[1727412112397,10.79584968,156.71,156.67,9.84]
[1727412112603,0.95584968,156.7,156.68,9.84]
[1727412112902,0.95584968,156.69,156.63,2.6543]
[1727412113102,0.95584968,156.68,156.67,9.84]
[1727412113300,3.1909,156.68,156.67,9.84]
[1727412113497,4.14674968,156.68,156.67,9.84]
[1727412113696,3.1909,156.68,156.67,9.84]
[1727412114001,4.14669692,156.68,156.67,9.84]
[1727412114601,3.1909,156.68,156.67,9.84]
[1727412114901,4.14669498,156.68,156.67,9.84]
[1727412115599,0.95579498,156.68,156.67,9.84]
[1727412115802,3.19743202,156.7,156.63,2.6543]
[1727412116104,0.95579498,156.69,156.67,9.84]
[1727412116304,0.95579498,156.68,156.67,9.84]
[1727412116499,0.95579498,156.69,156.67,9.84]
[1727412116801,4.14649498,156.68,156.67,9.84]
[1727412118400,0.95579498,156.68,156.67,9.84]
[1727412118793,0.95579498,156.71,156.67,9.84]
[1727412118993,3.1905,156.69,156.68,9.84]
[1727412119202,4.14629617,156.69,156.68,9.84]
[1727412120103,3.1909,156.68,156.67,9.84]
[1727412120304,4.14669617,156.68,156.67,9.84]
[1727412121900,4.14669624,156.68,156.67,9.84]
[1727412122102,4.14669659,156.68,156.67,9.84]
[1727412122401,4.14669659,156.68,156.63,9.84]
[1727412122402,0.95579659,156.68,156.63,9.84]
[1727412122601,0.95585822,156.67,156.62,1.2694]
[1727412122802,3.1917,156.64,156.62,1.2694]
[1727412122997,3.1917,156.64,156.63,9.84]
[1727412123194,4.14765213,156.64,156.63,9.84]
[1727412123401,3.1917,156.63,156.62,1.2694]
[1727412123604,9.84,156.63,156.57,2.5505]
[1727412123803,9.84,156.63,156.59,9.84]
[1727412124103,3.192,156.62,156.59,13.0324]
[1727412124400,9.84,156.63,156.59,13.0324]
[1727412124597,3.192,156.62,156.59,13.0324]
[1727412124799,9.84,156.6,156.53,1.3166]
[1727412125103,3.1931,156.57,156.53,11.1566]
[1727412125302,9.84,156.58,156.53,14.3502]
[1727412125500,9.84,156.58,156.54,9.84]
[1727412125905,9.84,156.58,156.54,13.0334]
[1727412126801,3.1929,156.57,156.54,13.0334]
[1727412126996,9.62062102,156.66,156.56,9.84]
[1727412127198,9.84,156.6,156.56,9.84]
[1727412127507,4.14895847,156.59,156.56,9.84]
[1727412127707,3.1927,156.59,156.56,9.84]
[1727412127909,9.84,156.6,156.56,9.84]
[1727412128208,0.95628158,156.59,156.56,9.84]
[1727412128800,3.1928,156.58,156.56,9.84]
[1727412129208,1.3423,156.64,156.57,9.84]
[1727412129409,1.91254995,156.63,156.58,9.84]
[1727412129709,10.79627504,156.62,156.58,9.84]
[1727412129909,3.1924,156.6,156.58,9.84]
[1727412130204,9.84,156.62,156.58,9.84]
[1727412130404,0.95613821,156.61,156.6,9.84]
[1727412130606,4.14807491,156.63,156.6,9.84]
[1727412130810,0.95608101,156.62,156.6,9.84]
[1727412131213,4.14808101,156.62,156.6,9.84]
[1727412131405,10.79627491,156.63,156.59,9.84]
[1727412131610,0.95610886,156.62,156.59,9.84]
[1727412131810,3.1923,156.61,156.59,9.84]
[1727412134517,3.1923,156.6,156.57,3.1929]
[1727412134709,3.1923,156.6,156.58,9.84]
[1727412134908,9.84,156.62,156.59,9.84]
[1727412135107,0.95615262,156.61,156.59,9.84]
[1727412135313,3.1923,156.61,156.59,9.84]
[1727412137021,9.84,156.62,156.59,9.84]
[1727412137214,1.2532,156.69,156.59,9.84]
[1727412137414,3.192,156.62,156.59,9.84]
[1727412138409,0.95611681,156.61,156.59,9.84]
[1727412138810,3.192,156.62,156.59,9.84]
[1727412139019,0.95611644,156.61,156.59,9.84]
[1727412139618,3.192,156.62,156.59,9.84]
[1727412140821,0.95612308,156.61,156.59,9.84]
[1727412141016,4.14822308,156.61,156.59,9.84]
[1727412141322,3.1921,156.61,156.59,9.84]
[1727412143726,3.1921,156.61,156.58,3.1927]
[1727412143926,6.3814,156.68,156.57,9.84]
[1727412144123,9.84,156.61,156.57,9.84]
[1727412144524,3.1924,156.6,156.57,13.0329]
[1727412145321,6.3814,156.68,156.59,9.84]
[1727412145528,9.84,156.63,156.59,9.84]
[1727412145726,0.95617043,156.62,156.59,9.84]
[1727412145927,3.1921,156.61,156.59,9.84]
[1727412146629,1.2532,156.69,156.6,9.84]
[1727412146825,9.84,156.66,156.62,9.84]
[1727412147025,0.95606495,156.65,156.62,9.84]
[1727412147228,3.1917,156.64,156.62,9.84]
[1727412147429,0.95604763,156.63,156.62,9.84]
[1727412147825,3.1914,156.65,156.62,13.0319]
[1727412148028,0.95605376,156.64,156.62,13.0319]
[1727412149033,0.95605376,156.64,156.63,13.0317]
[1727412149231,9.84,156.71,156.63,9.84]
[1727412149528,3.1909,156.68,156.67,9.84]
[1727412149736,9.84,156.76,156.67,9.84]
[1727412149931,9.84,156.76,156.66,2.6698]
[1727412149932,9.84,156.73,156.66,2.6698]
[1727412150236,9.84,156.72,156.68,9.84]
[1727412150828,3.1902,156.71,156.68,9.84]
[1727412151032,3.1902,156.71,156.69,9.84]
[1727412151238,0.1264,156.81,156.7,9.84]
[1727412151539,3.13916897,156.77,156.71,9.84]
[1727412151737,9.84,156.75,156.71,9.84]
[1727412152536,9.84,156.74,156.7,9.84]
[1727412152934,3.1897,156.73,156.7,9.84]
[1727412153132,3.14204133,156.77,156.71,9.84]
[1727412153333,9.84,156.76,156.72,9.84]
[1727412153536,3.1897,156.73,156.71,9.84]
[1727412154233,3.1896,156.74,156.72,9.84]
[1727412154436,3.1896,156.74,156.73,9.84]
[1727412154741,9.84,156.77,156.73,9.84]
[1727412155134,6.376,156.82,156.73,9.84]
[1727412155135,9.84,156.76,156.73,9.84]
[1727412155335,3.1895,156.74,156.72,9.84]
[1727412155935,3.1895,156.74,156.71,3.19]
[1727412156238,13.0295,156.74,156.71,3.19]
[1727412156436,3.1893,156.76,156.72,13.0297]
[1727412156636,9.84,156.75,156.72,13.0297]
[1727412156830,0.1241,156.86,156.72,13.0297]
[1727412156831,5.71402469,156.84,156.72,13.0297]
[1727412157036,13.0292,156.76,156.72,13.0297]
[1727412157443,13.0292,156.76,156.73,3.1897]
[1727412158242,9.84,156.74,156.66,2.6698]
[1727412158437,9.84,156.74,156.69,9.84]
[1727412159833,3.1897,156.73,156.7,3.1901]
[1727412161042,3.1897,156.73,156.7,13.0301]
[1727412161237,3.1896,156.74,156.71,3.19]
[1727412161434,13.0296,156.74,156.71,3.19]
[1727412163345,3.1897,156.73,156.7,3.1901]
[1727412163544,13.0297,156.73,156.7,3.1901]
[1727412163949,6.3755,156.83,156.72,9.84]
[1727412164245,6.3755,156.83,156.73,11.1705]
[1727412164246,9.84,156.77,156.73,11.1705]
[1727412164550,3.1717551,156.83,156.74,13.0295]
[1727412164747,9.84,156.79,156.74,9.84]
[1727412164943,3.1889,156.77,156.74,13.0294]
[1727412165339,5.8150538,156.85,156.76,9.84]
[1727412165540,3.188,156.82,156.79,9.84]
[1727412166142,0.1245,156.94,156.74,2.6416]
[1727412166143,6.3715,156.93,156.8,9.84]
[1727412166343,6.3715,156.93,156.79,9.84]
[1727412166344,9.84,156.83,156.79,9.84]
[1727412166847,9.84,156.82,156.78,9.84]
[1727412167346,3.1881,156.81,156.78,9.84]
[1727412167942,9.84,156.82,156.78,9.84]
[1727412167943,3.1879,156.82,156.79,9.84]
[1727412168346,3.1879,156.82,156.78,15.3]
[1727412168548,3.1877,156.83,156.79,3.1884]
[1727412169245,3.1877,156.83,156.78,15.3]
[1727412169647,3.1875,156.84,156.8,18.4881]
[1727412170251,9.1118,156.93,156.81,3.1879]
[1727412170451,15.3,156.88,156.81,3.1879]
[1727412170752,3.1873,156.85,156.82,3.1878]
[1727412173254,3.1875,156.84,156.81,1.2843]
[1727412174450,15.3,156.86,156.81,1.2843]
[1727412174950,3.1878,156.83,156.81,1.2843]
[1727412177754,3.1878,156.82,156.81,1.2843]
[1727412177959,15.3,156.85,156.76,15.3]
[1727412178249,15.3,156.85,156.76,16.5556]
[1727412178857,15.3,156.83,156.76,1.2556]
[1727412179350,3.1886,156.79,156.76,4.4445]
[1727412180254,3.1886,156.79,156.77,3.1888]
[1727412180853,3.1886,156.79,156.76,4.4446]
[1727412182255,3.1883,156.8,156.77,3.1888]
[1727412182759,15.3,156.83,156.77,3.1888]
[1727412182956,15.3,156.83,156.76,1.2556]
[1727412183260,15.3,156.81,156.76,1.2556]
[1727412183460,15.3,156.79,156.71,15.3]
[1727412183652,15.3,156.79,156.72,3.1898]
[1727412184357,15.3,156.79,156.73,3.1897]
[1727412184558,15.3,156.79,156.72,1.3847]
[1727412184759,15.3,156.79,156.72,4.5746]
[1727412185158,15.3,156.78,156.72,1.3847]
[1727412186263,3.1897,156.74,156.72,1.3847]
[1727412187464,3.1897,156.73,156.72,1.3847]
[1727412188163,3.1895,156.74,156.72,1.3847]
[1727412188457,18.50186125,156.78,156.69,1.2883]
[1727412188657,3.1905,156.69,156.68,1.2738]
[1727412189258,3.1905,156.69,156.66,3.191]
[1727412189457,3.1908,156.68,156.65,18.4913]
[1727412189865,3.1908,156.68,156.65,15.3]
[1727412190060,3.1906,156.69,156.66,3.1911]
[1727412190461,15.3,156.72,156.63,1.2738]
[1727412190462,2.5442,156.74,156.68,9.81]
[1727412190665,3.1905,156.7,156.68,9.81]
[1727412190964,2.5442,156.74,156.68,9.81]
[1727412191164,9.81,156.72,156.68,9.81]
[1727412191361,3.17076492,156.76,156.7,9.81]
[1727412191563,2.5265,156.8,156.7,9.81]
[1727412191758,3.1899,156.72,156.71,9.81]
[1727412192266,3.1897,156.73,156.7,3.1903]
[1727412192458,3.22629364,156.79,156.71,15.32]
[1727412192665,17.8465,156.8,156.71,15.32]
[1727412192966,3.1894,156.75,156.71,18.51]
[1727412193367,1.2711,156.8,156.74,15.32]
[1727412196273,3.189,156.77,156.74,15.32]
[1727412196970,3.1893,156.75,156.74,15.32]
[1727412197373,15.32,156.83,156.74,15.32]
[1727412197671,15.32,156.83,156.76,15.32]
[1727412198566,15.32,156.83,156.77,3.1888]
[1727412198567,3.1883,156.8,156.77,3.1888]
[1727412198771,3.1883,156.8,156.76,15.32]
[1727412199374,3.1883,156.8,156.76,18.509]
[1727412199771,3.1881,156.81,156.77,3.1888]
[1727412199963,15.32,156.85,156.76,15.32]
[1727412201371,15.32,156.85,156.76,18.5089]
[1727412201774,15.32,156.85,156.76,15.32]
[1727412202771,3.1884,156.8,156.77,3.1888]
[1727412203170,15.32,156.85,156.76,15.32]
[1727412203572,15.32,156.85,156.75,1.3069]
[1727412203573,15.32,156.81,156.75,1.3069]
[1727412204172,3.1891,156.76,156.75,1.3069]
[1727412204472,15.32,156.81,156.73,15.32]
[1727412204871,3.1891,156.76,156.73,18.5096]
[1727412206274,18.5510065,156.79,156.71,15.32]
[1727412206474,15.32,156.79,156.71,15.32]
[1727412206673,15.32,156.79,156.71,18.5101]
[1727412206869,16.5828,156.79,156.71,18.5101]
[1727412207066,19.79785564,156.79,156.71,18.5101]
[1727412208876,3.1895,156.74,156.71,18.5101]
[1727412209975,3.1895,156.74,156.72,3.1898]
[1727412210176,3.1894,156.75,156.73,15.32]
[1727412210670,3.1891,156.76,156.73,15.32]
[1727412210868,1.2628,156.79,156.73,15.32]
[1727412211272,1.2628,156.79,156.73,18.5096]
[1727412213171,1.2628,156.79,156.7,1.2986]
[1727412213172,3.1893,156.75,156.72,3.1898]
[1727412213475,1.2628,156.79,156.7,1.2986]
[1727412213476,15.32,156.78,156.7,1.2986]
[1727412213679,15.32,156.76,156.7,1.2986]
[1727412214371,15.32,156.76,156.7,4.4889]
[1727412214579,15.32,156.76,156.56,544.47933822]
[1727412214580,15.32,156.74,156.57,6.3859]
[1727412214768,3.1905,156.7,156.67,15.32]
[1727412214974,15.32,156.74,156.65,1.3641]
[1727412215176,15.32,156.73,156.66,18.511]
[1727412215580,15.32,156.69,156.65,1.3641]
[1727412215872,15.32,156.69,156.61,18.5121]
[1727412216378,15.32,156.69,156.61,15.32]
[1727412216576,15.32,156.71,156.63,15.32]
[1727412216970,15.32,156.7,156.63,15.32]
[1727412217169,15.32,156.7,156.62,15.32]
[1727412217371,15.32,156.68,156.62,15.32]
[1727412217780,15.32,156.68,156.62,18.5119]
[1727412218576,15.32,156.68,156.62,15.32]
[1727412219578,15.32,156.68,156.6,18.5123]
[1727412219783,15.32,156.66,156.6,15.32]
[1727412219978,15.32,156.66,156.59,1.3641]
[1727412220173,3.1918,156.63,156.59,1.3641]
[1727412220783,3.1916,156.64,156.6,18.5122]
[1727412220974,3.1916,156.64,156.6,15.32]
[1727412222881,3.1916,156.64,156.61,3.192]
[1727412225382,3.1917,156.63,156.61,3.192]
[1727412228390,3.1917,156.63,156.62,9.82]
[1727412232482,1.2773,156.71,156.62,9.82]
[1727412232688,9.82,156.69,156.64,9.82]
[1727412233089,3.1911,156.66,156.64,9.82]
[1727412235889,3.1911,156.66,156.64,13.0115]
[1727412236094,3.1911,156.66,156.64,9.82]
[1727412237891,3.191,156.67,156.64,13.0114]
[1727412239495,9.82,156.68,156.59,1.3641]
[1727412239689,9.82,156.68,156.64,9.82]
[1727412239893,9.82,156.69,156.65,9.82]
[1727412240288,3.1911,156.66,156.65,9.82]
[1727412240991,3.1911,156.66,156.64,9.82]
[1727412244897,3.1913,156.65,156.64,9.82]
[1727412246195,3.1912,156.66,156.64,9.82]
[1727412246392,3.1912,156.66,156.65,9.82]
[1727412246995,6.3795,156.73,156.65,9.82]
[1727412246996,9.82,156.73,156.65,9.82]
[1727412247297,9.82,156.72,156.67,9.82]
[1727412247495,9.82,156.72,156.59,10.98005201]
[1727412247693,9.82,156.72,156.67,9.82]
[1727412247893,9.82,156.72,156.59,10.98005201]
[1727412248090,3.1907,156.68,156.59,10.98005201]
[1727412248303,3.1907,156.68,156.59,4.59505201]
[1727412248600,3.1907,156.68,156.67,9.82]
[1727412248991,3.1907,156.68,156.59,4.59505201]
[1727412249292,3.1907,156.68,156.67,9.82]
[1727412249898,3.1906,156.69,156.67,9.82]
[1727412250095,3.1906,156.69,156.68,9.82]
[1727412252407,9.82,156.72,156.68,9.82]
[1727412252798,1.2806,156.77,156.68,9.82]
[1727412253106,9.82,156.73,156.7,9.82]
[1727412253406,3.1903,156.71,156.7,9.82]
[1727412263810,9.82,156.73,156.7,9.82]
[1727412264811,3.1901,156.71,156.7,9.82]
[1727412265108,9.82,156.73,156.7,9.82]
[1727412266815,3.1901,156.71,156.7,9.82]
[1727412273623,3.1905,156.69,156.65,2.6871]
[1727412273819,3.1905,156.69,156.68,9.82]
[1727412274521,3.1905,156.69,156.66,3.191]
[1727412274717,3.1905,156.69,156.68,9.82]
[1727412280221,3.1908,156.68,156.65,5.8783]
[1727412280520,3.1908,156.68,156.67,9.82]
[1727412283118,1.2806,156.77,156.67,9.82]
[1727412283321,9.82,156.75,156.72,9.82]
[1727412283522,9.82,156.75,156.71,9.82]
[1727412283718,3.1908,156.68,156.65,5.8782]
[1727412284027,3.1908,156.68,156.67,9.82]
[1727412286619,3.1905,156.69,156.67,9.82]
[1727412286824,9.82,156.73,156.68,9.82]
[1727412287219,3.1905,156.69,156.68,9.82]
[1727412294732,3.1907,156.68,156.66,3.1911]
[1727412294931,9.82,156.68,156.64,9.82]
[1727412295234,4.42775212,156.77,156.66,9.82]
[1727412295436,3.1911,156.67,156.64,3.1914]
[1727412295631,3.1911,156.67,156.66,9.82]
[1727412296327,9.82,156.72,156.66,9.82]
[1727412296532,9.82,156.72,156.69,9.82]
[1727412296935,3.1903,156.7,156.69,9.82]
[1727412297137,9.82,156.71,156.68,9.82]
[1727412298635,3.1905,156.69,156.68,9.82]
[1727412301736,3.1904,156.7,156.68,9.82]
[1727412301935,3.1904,156.7,156.69,9.82]
[1727412303541,3.1904,156.7,156.68,9.82]
[1727412303740,3.1905,156.69,156.68,9.82]
[1727412304236,4.42775212,156.77,156.68,9.82]
[1727412304441,9.82,156.74,156.62,2.5986]
[1727412304642,9.82,156.74,156.7,9.82]
[1727412305042,9.82,156.73,156.7,9.82]
[1727412305243,9.82,156.73,156.69,9.82]
[1727412305745,12.98916916,156.73,156.69,9.82]
[1727412305934,12.98916916,156.73,156.65,3.1913]
[1727412305935,9.82,156.71,156.65,3.1913]
[1727412306140,9.82,156.71,156.66,9.82]
[1727412306334,9.82,156.71,156.62,2.5986]
[1727412306335,9.82,156.7,156.62,2.5986]
[1727412306543,9.82,156.7,156.65,9.82]
[1727412307040,3.1911,156.67,156.65,9.82]